Department Family,Entity,Date,Expense Type,Expense Area,Supplier,Transaction Number,Amount
DOH,London Ambulance Service NHS Trust,02/12/2010,Electricity,Beacontree Estates,SCOTTISH AND SOUTHERN ELECTRIC,DRD0016278,2192.55
DOH,London Ambulance Service NHS Trust,02/12/2010,Electricity,Newham Estates,SCOTTISH AND SOUTHERN ELECTRIC,DRD0016278,1518.92
DOH,London Ambulance Service NHS Trust,02/12/2010,Electricity,Romford Estates,SCOTTISH AND SOUTHERN ELECTRIC,DRD0016278,1810.78
DOH,London Ambulance Service NHS Trust,02/12/2010,Electricity,Isleworth Estates,SCOTTISH AND SOUTHERN ELECTRIC,DRD0016278,1766.54
DOH,London Ambulance Service NHS Trust,02/12/2010,Electricity,Feltham Estates,SCOTTISH AND SOUTHERN ELECTRIC,DRD0016278,269.41
DOH,London Ambulance Service NHS Trust,02/12/2010,Electricity,Pin and Middx Hosp Estates,SCOTTISH AND SOUTHERN ELECTRIC,DRD0016278,430.15
DOH,London Ambulance Service NHS Trust,02/12/2010,Electricity,Pinner Estates,SCOTTISH AND SOUTHERN ELECTRIC,DRD0016278,1483.95
DOH,London Ambulance Service NHS Trust,02/12/2010,Electricity,Chiswick Estates,SCOTTISH AND SOUTHERN ELECTRIC,DRD0016278,1338.51
DOH,London Ambulance Service NHS Trust,02/12/2010,Electricity,Greenford Estates,SCOTTISH AND SOUTHERN ELECTRIC,DRD0016278,484.41
DOH,London Ambulance Service NHS Trust,02/12/2010,Electricity,Park Royal Estates,SCOTTISH AND SOUTHERN ELECTRIC,DRD0016278,183.33
DOH,London Ambulance Service NHS Trust,02/12/2010,Electricity,St Johns Wood Estates,SCOTTISH AND SOUTHERN ELECTRIC,DRD0016278,1101.76
DOH,London Ambulance Service NHS Trust,02/12/2010,Electricity,Camden Estates,SCOTTISH AND SOUTHERN ELECTRIC,DRD0016278,3088.4
DOH,London Ambulance Service NHS Trust,02/12/2010,Electricity,Mill Hill Estates,SCOTTISH AND SOUTHERN ELECTRIC,DRD0016278,616.91
DOH,London Ambulance Service NHS Trust,02/12/2010,Electricity,Neasden Estates,SCOTTISH AND SOUTHERN ELECTRIC,DRD0016278,238.15
DOH,London Ambulance Service NHS Trust,02/12/2010,Electricity,Wimbledon Estates,SCOTTISH AND SOUTHERN ELECTRIC,DRD0016278,307.7
DOH,London Ambulance Service NHS Trust,02/12/2010,Electricity,Deptford Estates,SCOTTISH AND SOUTHERN ELECTRIC,DRD0016278,2399.12
DOH,London Ambulance Service NHS Trust,02/12/2010,Electricity,Battersea Estates,SCOTTISH AND SOUTHERN ELECTRIC,DRD0016278,387.49
DOH,London Ambulance Service NHS Trust,02/12/2010,Electricity,Greenwich Estates,SCOTTISH AND SOUTHERN ELECTRIC,DRD0016278,388.21
DOH,London Ambulance Service NHS Trust,02/12/2010,Electricity,Ponders End Estates,SCOTTISH AND SOUTHERN ELECTRIC,DRD0016278,965.53
DOH,London Ambulance Service NHS Trust,02/12/2010,Electricity,Whipps Cross Estates,SCOTTISH AND SOUTHERN ELECTRIC,DRD0016278,2399.12
DOH,London Ambulance Service NHS Trust,02/12/2010,Electricity,Edmonton Estates,SCOTTISH AND SOUTHERN ELECTRIC,DRD0016278,1634.34
DOH,London Ambulance Service NHS Trust,02/12/2010,Electricity,Chase Farm Estates,SCOTTISH AND SOUTHERN ELECTRIC,DRD0016278,1474.39
DOH,London Ambulance Service NHS Trust,02/12/2010,Electricity,Barnehurst Estates,SCOTTISH AND SOUTHERN ELECTRIC,DRD0016278,996.15
DOH,London Ambulance Service NHS Trust,02/12/2010,Electricity,Bromley Estates,SCOTTISH AND SOUTHERN ELECTRIC,DRD0016278,2737.78
DOH,London Ambulance Service NHS Trust,02/12/2010,Electricity,Mottingham Estates,SCOTTISH AND SOUTHERN ELECTRIC,DRD0016278,527.11
DOH,London Ambulance Service NHS Trust,02/12/2010,Electricity,Woolwich Estates,SCOTTISH AND SOUTHERN ELECTRIC,DRD0016278,421.78
DOH,London Ambulance Service NHS Trust,02/12/2010,Electricity,Malden Estates,SCOTTISH AND SOUTHERN ELECTRIC,DRD0016278,2257.95
DOH,London Ambulance Service NHS Trust,02/12/2010,Electricity,St Helier Estates,SCOTTISH AND SOUTHERN ELECTRIC,DRD0016278,1687.61
DOH,London Ambulance Service NHS Trust,02/12/2010,Electricity,Croydon Estates,SCOTTISH AND SOUTHERN ELECTRIC,DRD0016278,2568.4
DOH,London Ambulance Service NHS Trust,02/12/2010,Electricity,Tolworth Estates,SCOTTISH AND SOUTHERN ELECTRIC,DRD0016278,193.71
DOH,London Ambulance Service NHS Trust,02/12/2010,Electricity,New Addington Estates,SCOTTISH AND SOUTHERN ELECTRIC,DRD0016278,948.85
DOH,London Ambulance Service NHS Trust,02/12/2010,Electricity,Smithfield Estates,SCOTTISH AND SOUTHERN ELECTRIC,DRD0016278,132.88
DOH,London Ambulance Service NHS Trust,02/12/2010,Electricity,West Ham Estates,SCOTTISH AND SOUTHERN ELECTRIC,DRD0016278,2448.45
DOH,London Ambulance Service NHS Trust,02/12/2010,Electricity,Homerton Estates,SCOTTISH AND SOUTHERN ELECTRIC,DRD0016278,4182.8
DOH,London Ambulance Service NHS Trust,02/12/2010,Electricity,North Kensington Estates,SCOTTISH AND SOUTHERN ELECTRIC,DRD0016278,1434.03
DOH,London Ambulance Service NHS Trust,02/12/2010,Electricity,Westminster Estates,SCOTTISH AND SOUTHERN ELECTRIC,DRD0016278,97.65
DOH,London Ambulance Service NHS Trust,02/12/2010,Electricity,Oval Estates,SCOTTISH AND SOUTHERN ELECTRIC,DRD0016278,598.32
DOH,London Ambulance Service NHS Trust,02/12/2010,Electricity,Forest Hill Estates,SCOTTISH AND SOUTHERN ELECTRIC,DRD0016278,53.44
DOH,London Ambulance Service NHS Trust,02/12/2010,Electricity,PURLEY AMBULANCE STATION,SCOTTISH AND SOUTHERN ELECTRIC,DRD0016278,64.79
DOH,London Ambulance Service NHS Trust,02/12/2010,Electricity,Pocock Street,SCOTTISH AND SOUTHERN ELECTRIC,DRD0016278,4053.42
DOH,London Ambulance Service NHS Trust,02/12/2010,Electricity,Unit 3 Deptford Estates,SCOTTISH AND SOUTHERN ELECTRIC,DRD0016278,769.95
DOH,London Ambulance Service NHS Trust,02/12/2010,Electricity,Chelsham Transmitter,SCOTTISH AND SOUTHERN ELECTRIC,DRD0016278,208.12
DOH,London Ambulance Service NHS Trust,02/12/2010,Electricity,Shooters Hill Transmitter,SCOTTISH AND SOUTHERN ELECTRIC,DRD0016278,821.86
DOH,London Ambulance Service NHS Trust,02/12/2010,Electricity,Fixed Satellite Points,SCOTTISH AND SOUTHERN ELECTRIC,DRD0016278,563.01
DOH,London Ambulance Service NHS Trust,02/12/2010,Electricity,Tower Hamlets Estates (Silvert,SCOTTISH AND SOUTHERN ELECTRIC,DRD0016278,2001.07
DOH,London Ambulance Service NHS Trust,02/12/2010,Electricity,Cody Road Ambulance Station,SCOTTISH AND SOUTHERN ELECTRIC,DRD0016278,182.35
DOH,London Ambulance Service NHS Trust,02/12/2010,Electricity,Islington Amb (New st) Rev,SCOTTISH AND SOUTHERN ELECTRIC,DRD0016278,407.99
DOH,London Ambulance Service NHS Trust,02/12/2010,Electricity,Olympics Silvertown,SCOTTISH AND SOUTHERN ELECTRIC,DRD0016278,190.29
DOH,London Ambulance Service NHS Trust,02/12/2010,Ensign Insurance Debtor,Control Accounts,QBE INTERNATIONAL INSURANCE T/A ENSIGN,DRD0016323,203541.66
DOH,London Ambulance Service NHS Trust,07/12/2010,Finance lease Creds <1 year,Control Accounts,ILC LEASING,DRD0016336,135796.16
DOH,London Ambulance Service NHS Trust,16/12/2010,BP Control Account,Control Accounts,B.P. OIL,DRD0016351,327830.43
DOH,London Ambulance Service NHS Trust,16/12/2010,Property Expenses Scheme,Legal Services,NHSLA,DRD0016356,1560
DOH,London Ambulance Service NHS Trust,16/12/2010,CNST Contributions,Legal Services,NHSLA,DRD0016356,52228
DOH,London Ambulance Service NHS Trust,16/12/2010,Liability to 3rd Party Scheme,Legal Services,NHSLA,DRD0016356,16848
DOH,London Ambulance Service NHS Trust,29/12/2010,BOC Control Account,Control Accounts,BRITISH OXYGEN,DRD0016386,132682.98
DOH,London Ambulance Service NHS Trust,31/12/2010,Finance lease Creds <1 year,Control Accounts,SINGER & FRIEDLANDER,DRD0016396,140804.73
DOH,London Ambulance Service NHS Trust,31/12/2010,BP Control Account,Control Accounts,B.P. OIL,DRD0016397,231374.3
DOH,London Ambulance Service NHS Trust,31/12/2010,Finance lease Creds <1 year,Control Accounts,I.L.C. LEASING,DRD0016400,139909.17
DOH,London Ambulance Service NHS Trust,31/12/2010,Finance lease Creds <1 year,Control Accounts,SINGER AND FRIEDLANDER LEASING,DRD0016401,41976.69
DOH,London Ambulance Service NHS Trust,15/12/2010,Tyres,Fleet Support Services,ATS EUROMASTER LTD,920939,9033.9
DOH,London Ambulance Service NHS Trust,15/12/2010,Tyres,Fleet Support Services,ATS EUROMASTER LTD,920939,5216.34
DOH,London Ambulance Service NHS Trust,15/12/2010,Tyres,Fleet Support Services,ATS EUROMASTER LTD,920939,3627.79
DOH,London Ambulance Service NHS Trust,15/12/2010,Tyres,Fleet Support Services,ATS EUROMASTER LTD,920939,1850.23
DOH,London Ambulance Service NHS Trust,15/12/2010,Tyres,Fleet Support Services,ATS EUROMASTER LTD,920939,2686.34
DOH,London Ambulance Service NHS Trust,15/12/2010,Tyres,Fleet Support Services,ATS EUROMASTER LTD,920939,5316.73
DOH,London Ambulance Service NHS Trust,15/12/2010,Tyres,Fleet Support Services,ATS EUROMASTER LTD,920939,2221.65
DOH,London Ambulance Service NHS Trust,15/12/2010,Tyres,Fleet Support Services,ATS EUROMASTER LTD,920939,2859.44
DOH,London Ambulance Service NHS Trust,15/12/2010,Tyres,Fleet Support Services,ATS EUROMASTER LTD,920939,6732.56
DOH,London Ambulance Service NHS Trust,15/12/2010,Tyres,Fleet Support Services,ATS EUROMASTER LTD,920939,4419.21
DOH,London Ambulance Service NHS Trust,15/12/2010,Tyres,Fleet Support Services,ATS EUROMASTER LTD,920939,2588.41
DOH,London Ambulance Service NHS Trust,15/12/2010,Tyres,Fleet Support Services,ATS EUROMASTER LTD,920939,6022.8
DOH,London Ambulance Service NHS Trust,15/12/2010,Tyres,Fleet Support Services,ATS EUROMASTER LTD,921822,14038.46
DOH,London Ambulance Service NHS Trust,15/12/2010,Tyres,Fleet Support Services,ATS EUROMASTER LTD,921822,15994.55
DOH,London Ambulance Service NHS Trust,15/12/2010,Tyres,Fleet Support Services,ATS EUROMASTER LTD,921822,10348.05
DOH,London Ambulance Service NHS Trust,15/12/2010,Tyres,Fleet Support Services,ATS EUROMASTER LTD,921822,10937.72
DOH,London Ambulance Service NHS Trust,15/12/2010,Tyres,Fleet Support Services,ATS EUROMASTER LTD,921822,16940.35
DOH,London Ambulance Service NHS Trust,15/12/2010,Tyres,Fleet Support Services,ATS EUROMASTER LTD,921822,5322.81
DOH,London Ambulance Service NHS Trust,15/12/2010,Tyres,Fleet Support Services,ATS EUROMASTER LTD,921822,17578.49
DOH,London Ambulance Service NHS Trust,15/12/2010,Tyres,Fleet Support Services,ATS EUROMASTER LTD,921822,8408.78
DOH,London Ambulance Service NHS Trust,15/12/2010,Tyres,Fleet Support Services,ATS EUROMASTER LTD,921822,2695.51
DOH,London Ambulance Service NHS Trust,15/12/2010,Tyres,Fleet Support Services,ATS EUROMASTER LTD,921822,5469.06
DOH,London Ambulance Service NHS Trust,15/12/2010,Tyres,Fleet Support Services,ATS EUROMASTER LTD,921822,8633.38
DOH,London Ambulance Service NHS Trust,15/12/2010,Tyres,Fleet Support Services,ATS EUROMASTER LTD,921822,455.58
DOH,London Ambulance Service NHS Trust,15/12/2010,Tyres,Fleet Support Services,ATS EUROMASTER LTD,921822,644.82
DOH,London Ambulance Service NHS Trust,08/12/2010,Buildings,Islington Ambulance Station,CONISTON LIMITED,921886,50129.69
DOH,London Ambulance Service NHS Trust,08/12/2010,Authorised Modifications,SPPP506 Vehicle Fleet Reconfig,S.MACNEILLIE & SON LTD,922259,69558.12
DOH,London Ambulance Service NHS Trust,08/12/2010,Authorised Modifications,SPPP506 Vehicle Fleet Reconfig,S.MACNEILLIE & SON LTD,922261,69558.12
DOH,London Ambulance Service NHS Trust,08/12/2010,Authorised Modifications,SPPP506 Vehicle Fleet Reconfig,S.MACNEILLIE & SON LTD,922266,69558.12
DOH,London Ambulance Service NHS Trust,08/12/2010,Authorised Modifications,SPPP506 Vehicle Fleet Reconfig,S.MACNEILLIE & SON LTD,922268,69558.12
DOH,London Ambulance Service NHS Trust,08/12/2010,Authorised Modifications,SPPP506 Vehicle Fleet Reconfig,S.MACNEILLIE & SON LTD,922282,69558.12
DOH,London Ambulance Service NHS Trust,15/12/2010,CAC Tools Maintenance,Software Development & Support,TRUSTMARQUE SOLUTIONS,922769,105652.59
DOH,London Ambulance Service NHS Trust,15/12/2010,Building Planned,Hanwell Estates,CONISTON LIMITED,922926,40755.45
DOH,London Ambulance Service NHS Trust,08/12/2010,Buildings,Cody Road Refurb,WARWICK AVENUE LTD,924061,222476.62
DOH,London Ambulance Service NHS Trust,21/12/2010,Buildings,PURLEY AMBULANCE STATION,CONISTON LIMITED,924072,65000
DOH,London Ambulance Service NHS Trust,15/12/2010,Capitalised Software,CAD 2010 Capital,NORTHROP GRUMMAN INFORMATION TECHNOLOGY,924323,1385157
DOH,London Ambulance Service NHS Trust,15/12/2010,Capitalised Software,CAD 2010 Capital,NORTHROP GRUMMAN INFORMATION TECHNOLOGY,924324,30346
DOH,London Ambulance Service NHS Trust,15/12/2010,Capitalised Software,CAD 2010 Capital,NORTHROP GRUMMAN INFORMATION TECHNOLOGY,924324,205621
DOH,London Ambulance Service NHS Trust,15/12/2010,Capitalised Software,CAD 2010 Capital,NORTHROP GRUMMAN INFORMATION TECHNOLOGY,924324,80000
DOH,London Ambulance Service NHS Trust,15/12/2010,Computer Hardware,CAD 2010 Capital,NORTHROP GRUMMAN INFORMATION TECHNOLOGY,924325,5768
DOH,London Ambulance Service NHS Trust,15/12/2010,Network Equipment and Services,CAD 2010 Capital,NORTHROP GRUMMAN INFORMATION TECHNOLOGY,924325,20000
DOH,London Ambulance Service NHS Trust,21/12/2010,CAC Tools Maintenance,Software Development & Support,TRUSTMARQUE SOLUTIONS,924522,105652.58
DOH,London Ambulance Service NHS Trust,21/12/2010,Occupational Health Fees,Staff Support,ATOS ORIGIN IT SERVICES LTD,924525,30309.97
DOH,London Ambulance Service NHS Trust,21/12/2010,IP Telephony Maintenenance,IM&T Network Support,BT GLOBAL SERVICES,924620,31079.95
DOH,London Ambulance Service NHS Trust,21/12/2010,Rent,FIELDEN HOUSE,FIELDEN HOUSE INVESTMENT LTD,925539,31615.16
DOH,London Ambulance Service NHS Trust,21/12/2010,Rent,FIELDEN HOUSE,FIELDEN HOUSE INVESTMENT LTD,925540,32094.64
DOH,London Ambulance Service NHS Trust,23/12/2010,Technical Support - Contract,CTS contract,COMMUNICATION AND TECHNICAL SER,925559,84546.82
